Cogmind - Beta 14 @@@ ROGUE MODE // 2025.03.07 @ 17:56:52 Player: canerib Result: Self-destructed Performance ------------- Evolutions (2) 1000 Regions Visited (5) 1000 Robots Destroyed (12) 60 Value Destroyed (212) 212 Prototype IDs (1) 20 Alien Tech Used (0) 0 Bonus (300) 300 TOTAL SCORE: 2592 Bonus ------- Aligned with FarCom 300 Cogmind --------- Core Integrity 535/550 Matter 164/300 Energy 1625/1625 System Corruption 0% Temperature Cool (0) Movement Walking (120) Location -8/Materials Parts ------- > --- POWER (1) -------- Light Ion Engine > --- PROPULSION (4) --- Aluminum Leg Aluminum Leg Aluminum Leg > --- UTILITY (4) ------ Large Storage Unit Superbattery Seismic Detector > --- WEAPON (2) ------- Light Assault Rifle Light Assault Rifle > --- INVENTORY (15) --- Ion Engine Airjet Signal Interpreter Reaction Control System Hacking Suite Grenade Launcher Mining Laser Peak State ------------ > --- POWER ------------ Light Ion Engine > --- PROPULSION ------- Aluminum Leg Aluminum Leg Aluminum Leg > --- UTILITY ---------- Large Storage Unit Superbattery Seismic Detector > --- WEAPON ----------- Light Assault Rifle Mining Laser > --- INVENTORY -------- Ion Engine Airjet Signal Interpreter Reaction Control System Light Assault Rifle Grenade Launcher [Rating: 19] Favorites ----------- Power Ion Engine Engine Ion Engine Propulsion Aluminum Leg Leg Aluminum Leg Utility Seismic Detector Device Seismic Detector Storage Small Storage Unit Weapon Light Assault Rifle Energy Gun Medium Laser Ballistic Gun Light Assault Rifle Launcher Grenade Launcher Special Weapon Mining Laser Build | -11 -10 -10 -10 -9 -8 ------- Run | Yrd Mat Min Exi Min Mat Slots Evolved 4 | . . . . . 4 Power . | . . . . . . Propulsion 2 | . . . . . 2 Utility 2 | . . . . . 2 Weapon . | . . . . . . Parts Attached 26 | 7 1 1 2 5 10 Power 3 | 1 . 1 . . 1 Engine 3 | 1 . 1 . . 1 Core . | . . . . . . Reactor . | . . . . . . Propulsion 5 | 2 . . . 2 1 Treads . | . . . . . . Leg 5 | 2 . . . 2 1 Wheel . | . . . . . . Hover . | . . . . . . Flight . | . . . . . . Utility 5 | 2 . . 1 1 1 Device 2 | 1 . . . . 1 Storage 3 | 1 . . 1 1 . Processor . | . . . . . . Hackware . | . . . . . . Protection . | . . . . . . Artifact . | . . . . . . Weapon 13 | 2 1 . 1 2 7 Energy Gun 2 | 1 1 . . . . Energy Cannon . | . . . . . . Ballistic Gun 6 | 1 . . . 1 4 Ballistic Cannon . | . . . . . . Launcher 1 | . . . . 1 . Special Weapon 4 | . . . 1 . 3 Impact Weapon . | . . . . . . Slashing Weapon . | . . . . . . Piercing Weapon . | . . . . . . Special Melee Weapon . | . . . . . . Unidentified Prototypes 1 | . . . 1 . . Parts Lost 1 | . . . . 1 . Power . | . . . . . . Propulsion . | . . . . . . Utility . | . . . . . . Weapon 1 | . . . . 1 . Highest Loss Streak 1 | . . . . 1 . To Critical Strikes . | . . . . . . Average Slot Usage (%) 96 | . 99 100 100 99 81 Engine 13 | . 14 14 14 14 9 Leg 27 | . 28 28 28 28 27 Device 12 | . 14 14 14 9 9 Storage 15 | . 14 14 14 18 18 Energy Gun 3 | . 13 14 . . . Ballistic Gun 16 | . 14 14 14 26 12 Special Weapon 6 | . . . 13 . 5 Peak Build Rating 19 | 7 7 7 16 16 19 Average Rating 11 | 5 6 7 9 15 18 On Entrance 8 | . 7 7 7 16 15 Naked Turns . | . . . . . . Heaviest Build 33 | 14 14 14 14 33 30 Greatest Support 30 | 20 20 20 20 20 30 Greatest Overweight (x) 1 | . . . . 1 . Average Overweight (x) . | . . . . . . Largest Inventory Capacity 15 | 8 8 8 8 15 15 Average Capacity 8 | 7 8 8 7 8 15 Most Carried 7 | 5 7 7 7 6 7 Average Carried 5 | 2 5 6 5 5 5 Final Capacity 15 | 8 8 8 5 15 15 Final Carried 7 | 3 6 6 5 6 7 Class Distribution -------------------- 84% | Mutant 15% | Scavenger-Mutant Dominant Class ---------------- Mutant | -10/Materials Mutant | -10/Mines Mutant | -10/Exiles Mutant | -9/Mines Scavenger-Mutant | -8/Materials Resources | -11 -10 -10 -10 -9 -8 ----------- Run | Yrd Mat Min Exi Min Mat Matter Collected 367 | 284 17 26 . 40 . Remotely . | . . . . . . Salvage Created 308 | 54 100 103 . . 51 Parts 22 | 6 5 9 . . 2 Haulers Intercepted . | . . . . . . Recyclers Shooed 1 | 1 . . . . . Parts Field Recycled . | . . . . . . Retrieved Matter . | . . . . . . Parts Self-Destructed . | . . . . . . Prevented . | . . . . . . Kills | -11 -10 -10 -10 -9 -8 ------- Run | Yrd Mat Min Exi Min Mat Combat Hostiles Destroyed 10 | . 3 6 . . 1 Guns 10 | . 3 6 . . 1 Classes Destroyed 3 | 1 2 . . . . Tunneler 2 | 2 . . . . . Swarmer 7 | . 1 6 . . . Grunt 3 | . 2 . . . 1 Best Kill Streak 3 | 1 2 3 . . 1 Combat Bots Only 3 | . 2 3 . . 1 Max Kills in Single Turn 2 | 1 1 2 . . 1 Gunslinging . | . . . . . . Exploded . | . . . . . . Melee . | . . . . . . Uniques/NPCs Destroyed . | . . . . . . Combat | -11 -10 -10 -10 -9 -8 -------- Run | Yrd Mat Min Exi Min Mat Hostile Shots Fired 97 | . 26 30 . 24 17 Missed 25 | . 9 5 . 5 6 Damage Taken 674 | . 204 202 . 145 123 Core 97 | . 27 30 . 25 15 Absorbed by Shields . | . . . . . . Regen/Repaired (Parts) 50 | . 50 . . . . Core Remaining (%) 83 | 100 . . . 67 . Volleys Fired 62 | 14 7 16 2 1 22 Largest 2 | 2 2 2 1 1 2 Hottest 100 | 70 70 70 100 20 100 Shots Fired 105 | 28 14 32 2 1 28 Gun 87 | 28 14 32 . 1 12 Cannon . | . . . . . . Launcher . | . . . . . . Special 18 | . . . 2 . 16 Kinetic 50 | 14 7 16 . 1 12 Thermal 55 | 14 7 16 2 . 16 Explosive . | . . . . . . Electromagnetic . | . . . . . . Robot Hit Streak 8 | 7 7 4 . . 8 Robot Miss Streak 2 | 2 1 2 . . 1 Penetration Max . | . . . . . . Secondary Targets 1 | . . 1 . . . Max Gunslinging Chain 1 | . . 1 . . . Shots Hit Robots 57 | 18 10 20 . . 9 Core Hits 25 | 4 6 9 . . 6 Critical Kills . | . . . . . . Critical Parts Destroyed . | . . . . . . Critical Strikes 1 | . 1 . . . . Burn 1 | . 1 . . . . Melee Attacks . | . . . . . . Impact . | . . . . . . Slashing . | . . . . . . Piercing . | . . . . . . Sneak Attacks . | . . . . . . Combat Hostiles . | . . . . . . Follow-up Attacks . | . . . . . . Damage Inflicted 568 | 179 103 217 . 3 66 Guns 565 | 179 103 217 . . 66 Cannons . | . . . . . . Explosions . | . . . . . . Melee . | . . . . . . Ramming 3 | . . . . 3 . Kinetic 231 | 65 30 70 . . 66 Thermal 334 | 114 73 147 . . . Explosive . | . . . . . . Electromagnetic . | . . . . . . Impact . | . . . . . . Slashing . | . . . . . . Piercing . | . . . . . . Highest Corruption . | . . . . . . Average Corruption . | . . . . . . Corruption Purged . | . . . . . . Corruption Blocked . | . . . . . . Overload Shots . | . . . . . . Overflow Damage . | . . . . . . Projectiles . | . . . . . . Explosions . | . . . . . . Melee . | . . . . . . Knockbacks . | . . . . . . Impact . | . . . . . . Kinetic . | . . . . . . Secondary . | . . . . . . Self-Inflicted Damage . | . . . . . . Shots . | . . . . . . Rammed . | . . . . . . Targets Rammed 1 | . . . . 1 . Kicked 1 | . . . . 1 . Crushed . | . . . . . . Highest Temperature 172 | 172 77 140 22 . 3 Average Temperature 60 | 85 31 61 11 . 3 Received Heat Transfer 111 | . 93 . . . 18 Siege Activations . | . . . . . . Robots Corrupted . | . . . . . . Combat Hostiles . | . . . . . . Parts Fried . | . . . . . . Impact Corruptions . | . . . . . . Robots Melted . | . . . . . . Combat Hostiles . | . . . . . . Parts Melted 3 | 1 1 1 . . . Heat Transferred 1073 | 333 296 444 . . . Parts Sabotaged . | . . . . . . Parts Stolen . | . . . . . . Parts Stripped . | . . . . . . Power Chain Reactions . | . . . . . . Alert | -11 -10 -10 -10 -9 -8 ------- Run | Yrd Mat Min Exi Min Mat Peak Influence 208 | 10 176 208 . 65 81 Initial 68 | . 6 68 . . . Average 43 | 2 88 159 . 2 29 Maximum Alert Level 1 | . . 1 . . . Low Security (%) 97 | 100 100 72 . 100 100 Level 1 2 | . . 27 . . . Level 2 . | . . . . . . Level 3 . | . . . . . . Level 4 . | . . . . . . Level 5 . | . . . . . . High Security . | . . . . . . Max Security . | . . . . . . Squads Dispatched 3 | . 1 . . . 2 Investigation 2 | . . . . . 2 Extermination . | . . . . . . Reinforcement 1 | . 1 . . . . Assault . | . . . . . . Garrison . | . . . . . . Intercept . | . . . . . . Searches Triggered . | . . . . . . Construction Impeded . | . . . . . . Haulers Reinforced . | . . . . . . Active Scanning Responses . | . . . . . . Cargo Convoy Interrupts . | . . . . . . Stealth | -11 -10 -10 -10 -9 -8 --------- Run | Yrd Mat Min Exi Min Mat Distress Signals 1 | . 1 . . . . Communications Jammed . | . . . . . . Distress Signals . | . . . . . . Times Spotted 25 | . 13 4 . 2 6 Peak Tracking Total 5 | . 5 3 . 4 4 Tactical Retreats 6 | . 2 . . 2 2 Traps | -11 -10 -10 -10 -9 -8 ------- Run | Yrd Mat Min Exi Min Mat Traps Triggered 1 | . . . . . 1 Indirectly . | . . . . . . Trap Hack Attempts . | . . . . . . Triggered . | . . . . . . Disarmed . | . . . . . . Reprogrammed . | . . . . . . Reused . | . . . . . . Traps Extracted . | . . . . . . Installed . | . . . . . . Triggered . | . . . . . . Machines | -11 -10 -10 -10 -9 -8 ---------- Run | Yrd Mat Min Exi Min Mat Machines Disabled 1 | . . . 1 . . Max in Single Turn 1 | . . . 1 . . Machines Repaired . | . . . . . . Machines Dismantled . | . . . . . . Machines Sabotaged . | . . . . . . Overloaded Fab Kills . | . . . . . . Hacking | -11 -10 -10 -10 -9 -8 --------- Run | Yrd Mat Min Exi Min Mat Machines Accessed 4 | . 2 . . . 2 Terminals 3 | . 1 . . . 2 Fabricators . | . . . . . . Repair Stations 1 | . 1 . . . . Recycling Units . | . . . . . . Scanalyzers . | . . . . . . Garrison Access . | . . . . . . Total Hacks 11 | . 5 . . . 6 Successful 7 | . 4 . . . 3 Failed 4 | . 1 . . . 3 Catastrophic 1 | . . . . . 1 Database Lockouts . | . . . . . . Manual 9 | . 3 . 1 . 5 Terminals 9 | . 3 . . . 6 Fabricators . | . . . . . . Repair Stations 2 | . 2 . . . . Recycling Units . | . . . . . . Scanalyzers . | . . . . . . Garrison Access . | . . . . . . Terminal Hacks 2 | . 1 . . . 1 Branch Access Points 1 | . 1 . . . . Zone Layout 1 | . . . . . 1 Fabricator Hacks . | . . . . . . Repair Station Hacks 2 | . 2 . . . . Scan Component 1 | . 1 . . . . Repair 1 | . 1 . . . . Recycling Unit Hacks . | . . . . . . Scanalyzer . | . . . . . . Garrison Access Hacks . | . . . . . . Unauthorized Hacks 3 | . 1 . . . 2 Terminals 3 | . 1 . . . 2 Botnet 3 | . 1 . . . 2 Fabricators . | . . . . . . Repair Stations . | . . . . . . Recycling Units . | . . . . . . Scanalyzers . | . . . . . . Garrison Access . | . . . . . . Data Cores Recovered . | . . . . . . Used . | . . . . . . Hacking Detections 4 | . 2 . . . 2 Full Trace Events 1 | . . . . . 1 Feedback Events . | . . . . . . Feedback Blocked . | . . . . . . Robot Schematics Acquired . | . . . . . . Robots Built . | . . . . . . Authchips . | . . . . . . Time . | . . . . . . Total Robot Build Rating . | . . . . . . Part Schematics Acquired . | . . . . . . Parts Built . | . . . . . . Authchips . | . . . . . . Time . | . . . . . . Total Part Build Rating . | . . . . . . Parts Repaired 1 | . 1 . . . . Time 26 | . 26 . . . . Parts Recycled . | . . . . . . Recycled Matter . | . . . . . . Retrieved Matter . | . . . . . . Retrieved Components . | . . . . . . Parts Scanalyzed . | . . . . . . Part Schematics Acquired . | . . . . . . Parts Damaged . | . . . . . . Bothacking | -11 -10 -10 -10 -9 -8 ------------ Run | Yrd Mat Min Exi Min Mat Used RIF Installer . | . . . . . . Robots Hacked . | . . . . . . Non-combat . | . . . . . . Combat . | . . . . . . Robot Hacks Applied . | . . . . . . Relay Couplers Released . | . . . . . . Fabnet Peak Effective % . | . . . . . . Robots Rewired . | . . . . . . Allies Hacked . | . . . . . . Hacks Repelled . | . . . . . . Allies | -11 -10 -10 -10 -9 -8 -------- Run | Yrd Mat Min Exi Min Mat Total Allies . | . . . . . . Largest Group . | . . . . . . Highest-Rated Group . | . . . . . . Highest-Rated Ally . | . . . . . . Total Orders . | . . . . . . Ally Attacks . | . . . . . . Total Damage . | . . . . . . Kills . | . . . . . . Allies Corrupted . | . . . . . . Allies Melted . | . . . . . . Intel | -11 -10 -10 -10 -9 -8 ------- Run | Yrd Mat Min Exi Min Mat Robot Analysis Total . | . . . . . . Derelict Logs Recovered 3 | . . . . 3 . Drone Launches . | . . . . . . Drone Recoveries . | . . . . . . Exploration | -11 -10 -10 -10 -9 -8 ------------- Run | Yrd Mat Min Exi Min Mat Turns Passed 2051 | 127 331 106 747 413 327 Spaces Moved 1322 | 65 228 49 557 293 130 Core 9 | 9 . . . . . Treads . | . . . . . . Legs 1313 | 56 228 49 557 293 130 Wheels . | . . . . . . Hover . | . . . . . . Flight . | . . . . . . Fastest Speed 50 | 50 120 120 120 120 120 Average Speed 123 | 110 120 120 120 136 120 Slowest Speed 190 | 120 120 120 120 190 120 Overloaded Moves . | . . . . . . Propulsion Burnouts . | . . . . . . Robots Hopped . | . . . . . . Cave-ins Triggered . | . . . . . . Exploration Rate (%) 40 | 4 42 10 90 85 14 Regions Visited 5 Branch Regions 3 Pre-discovered Areas 2 | . . . . 2 . Known Exits Taken 1 | . 1 . . . . Unknown Exits Taken 4 | 1 . 1 1 1 . Scrap Searched 3 | . . 1 . 2 . Spaces Dug 16 | . . . . . 16 Terrain Destroyed 17 | . . . 1 . 16 Melee . | . . . . . . Projectile 17 | . . . 1 . 16 AOE . | . . . . . . Terrain Rammed . | . . . . . . Walls Destroyed . | . . . . . . Machines Disabled . | . . . . . . Actions | -11 -10 -10 -10 -9 -8 --------- Run | Yrd Mat Min Exi Min Mat Total 1608 | 95 273 67 630 304 239 Wait 170 | . 34 . 63 . 73 Move 1317 | 64 227 48 556 292 130 Hop . | . . . . . . Pick Up 26 | 10 4 1 4 3 4 Fast Attach . | . . . . . . Attach 12 | 7 1 . 1 . 3 Detach . | . . . . . . Swap 14 | . . 1 1 5 7 Drop 6 | . . 1 3 2 . Fire 62 | 14 7 16 2 1 22 Melee . | . . . . . . Ram . | . . . . . . Kick 1 | . . . . 1 . Crush . | . . . . . . Escape Stasis . | . . . . . . Rewire . | . . . . . . Trap . | . . . . . . Miscellaneous . | . . . . . . Route ------- -11/Scrapyard -10/Materials (discovered 3 exits: [*Mat] / *Min x2) -10/Mines -10/Exiles -9/Mines (discovered 2 exits: *Mat x2) -8/Materials (discovered 1 exit: Fac) History --------- Turn | Location | Event 6 | -11/Scrapyard | Discovered new exit (range 15) 128 | -11/Scrapyard | Entered Materials 157 | -10/Materials | Identified exit to Mines 308 | -10/Materials | Build established: Mutant 308 | -10/Materials | Discovered new exit (range 11) 397 | -10/Materials | Repaired Med. Laser 459 | -10/Materials | Entered Mines 560 | -10/Mines | Deemed a non-threat by the Exiles lab entrance 560 | -10/Mines | Discovered new exit (range 5) 565 | -10/Mines | Entered Exiles 607 | -10/Exiles | Met 8R-AWN 629 | -10/Exiles | Met EX-HEX 688 | -10/Exiles | Met EX-DEC 708 | -10/Exiles | Visited The Gauntlet 888 | -10/Exiles | Discovered new exit (range 14) 996 | -10/Exiles | Met EX-BIN 1090 | -10/Exiles | Aligned with FarCom system 1091 | -10/Exiles | Given EX-Vault access code 1119 | -10/Exiles | Opened EX-Vault 1125 | -10/Exiles | Found Prototype Storage 1129 | -10/Exiles | Identified Superbattery 1225 | -10/Exiles | Warned to stay clear of 0b10 Research branches 1312 | -10/Exiles | Left Exiles lab with Superbattery 1312 | -10/Exiles | Entered Mines 1331 | -9/Mines | Learned location of Zion (-7) 1364 | -9/Mines | Discovered new exit (range 8) 1481 | -9/Mines | Found a hidden stash of uninstalled traps 1518 | -9/Mines | YI-UF0 nonchalantly dropped a Grenade Launcher on the ground 1540 | -9/Mines | Learned 2 Materials zone layouts 1569 | -9/Mines | Discovered new exit (range 10) 1725 | -9/Mines | Entered Materials 1725 | -8/Materials | Evolved 4 slots: Propulsion x2, Utility x2 1726 | -8/Materials | Identified exit to Factory 2027 | -8/Materials | Build established: Scavenger-Mutant 2052 | -8/Materials | Self-destructed Last Messages --------------- 01891_ K-01 Serf cleans the Terminal. 01895_ G-47 Trooper destroyed. 01903_ Connecting with Terminal... 01904_ R-06 Scavenger collects Lgt. Nuclear Core. 01908_ R-06 Scavenger collects Particle Gun. 01911_ U-05 Engineer builds a Wall. 01955_ K-01 Serf cleans the Fusion Modulator. 01959_ K-01 Serf collects debris. 01970_ K-01 Serf cleans the Fusion Modulator. 01991_ Triggered Alarm Trap. 01991_ An alarm sounds. 01991_ ALERT: Alarm triggered, dispatching investigation squad. 01998_ K-01 Serf cleans the Fusion Modulator. 02000_ Slug penetrates Wall. 02003_ K-01 Serf cleans the Fusion Modulator. 02003_ Slug penetrates Wall. 02018_ U-05 Engineer builds a Wall. 02036_ Acquired Hacking Suite. 02041_ Slug penetrates Wall. 02048_ U-05 Engineer builds a Wall. Map ----- +----------------------------------------------------+ | ?????????????????????????????????????????????????? | | ?????????????????????????????????????????????????? | | ?????????????????????????????????? # #?????? | | ?????????????????????????????????? ########?????? | | ?????????????????????????????????? #????????????? | | ?????????????????????????????????? #????????????? | | ?????????????????????????????????? #????????????? | | ????????????????????????????????? #????????????? | | ????????????????????????????????? #????????????? | | ???????????????????????????????s? #????????????? | | ?????????????????????????#######? #????????????? | | ?????????????????????????# # #????????????? | | ?????????????????????????# # #????????????? | | ?????????????????????????# " # ##########???? | | ?????????????????????????# "" # ## #???? | | ?????????????????????????# "" # ## ##### | | ?????????????????????????# """ # ## ## "" | | ??????????????????????Y??+ "" # ## """ ## "T | | ?????????????????????????# """ # ## """"" ## | | ?????????????????????????# """ # ## """"" ## | | ?????????????????????????# """ # ## """"" ## | | ?????????????????????????# " / ## """ ## | | ?????????????????????????# h # ## ## | | ?????????????????????????# # ## ## [ | | ????????????????????????######### ## ## | | ????????????????????????#@##???# ###/######### | | ????????????????????????###????#Y | | ???????????????????????????????# | | ????????????????????????######## | | ??????????????????? ###+######### | | ??????????????????? ######### #????? | | ???????????????????? ######### """ #????? | | ????????????????????##???# # !# """ ###### | | ?????????????????????????# h # # """ # | | ?????????????????????????# # """ # #""" | | ?????????????????????????# g # """ # """ #""" | | ?????????????????????????#s # """ ""# """ #""" | | ?????????????????????????# ss# ""# """ # | | ?????????????????????????# # """ T"# #""" | | ?????????????????????????#s + """ ""# """ #""" | | ?????????????????????????# # """ ""# """ #""" | | ?????????????????????????# # # """ # | | ?????????????????????????# ######### ####+# | | ?????????????????????????# # % #########????? | | ?????????????????????????# # """ / ???????????? | | ?????????????????????????# # "T" ###??????????? | | ?????????????????????????# / #????????????? | | ?????????????????????????# # #????????????? | | ?????????????????????????# # ! #????????????? | | ?????????????????????????# ######+#????????????? | +----------------------------------------------------+ Best States ------------- Heat Dissipation 31 Energy Generation 10 Energy Capacity 1750 Matter Stores 300 Matter Capacity 300 Sight Range 16 Terrain Scan Density 10 Evasion (%) 55 Item Schematics ----------------- None Robot Schematics ------------------ None Fabricated ------------ Nothing Alien Tech Used ----------------- None Achievements -------------- None Challenges ------------ None Game ------ Seed ScrapTacticalWheel Manual? 0 Play Time 00:20:18 Cumulative 51.5 hours Start 2025.03.06 @ 10:01:29 End 2025.03.07 @ 17:56:52 Sessions 3 Manual Loads 0 Difficulty Rogue Special Mode None Game No. 71 Rogue 71 Adventurer 0 Explorer 0 Win Type - Total 1 Types 1/0/0/0/0/0/0/0/0 Lore% 24 Gallery% 39 Achievement% 35 Wizard Run 0 Options --------- Layout 1 ASCII 1 Keyboard 0 Movement Numpad Keybinds 0 Fullscreen 1 Font 24/Smallcaps Map View 50x35 Zoom Use 0% Tactical HUD 1 Map Filters NONE Filters NONE Steam 1 RUN: 22b06c57-668c-40d5-afb7-7e94a30b81c1